bitfinex-derivatives/quotes_SOLF0:USTF0_20251117
["timestamp","ask_amount","ask_price","bid_price","bid_amount"]
[1763349276816,3.21,140.21,140.13,13.70899442]
[1763349277219,0.04527616,140.18,140.16,0.0496174]
[1763349278536,3.21,140.24,140.16,0.0496174]
[1763349278720,3.21,140.24,140.13,69.28179442]
[1763349279134,3.21,140.24,140.13,75.70899442]
[1763349279625,0.05053157,140.2,140.17,0.05133942]
[1763349279829,0.04646505,140.2,140.17,0.0462578]
[1763349280632,3.21,140.25,140.17,0.0462578]
[1763349281922,3.21,140.25,140.17,6.4716578]
[1763349284137,3.21,140.25,140.17,0.0462578]
[1763349287933,3.21,140.25,140.17,6.4717578]
[1763349288127,3.21,140.25,140.17,0.0462578]
[1763349288636,3.21,140.25,140.18,6.425]
[1763349288931,3.21,140.25,140.2,0.04901436]
[1763349297628,10.50985678,140.31,140.2,0.04901436]
[1763349297833,3.39,140.3,140.24,0.0470592]
[1763349299927,10.50985678,140.31,140.24,0.0470592]
[1763349300126,13.89985678,140.31,140.24,0.0470592]
[1763349300835,10.50985678,140.31,140.25,7.28179442]
[1763349301341,10.50985678,140.31,140.25,13.70369442]
[1763349302839,10.50985678,140.31,140.25,68.4219]
[1763349303337,10.50985678,140.31,140.25,75.70369442]
[1763349303542,10.50985678,140.31,140.26,6.4213]
[1763349303842,10.50985678,140.31,140.27,0.04997059]
[1763349304235,9.76784767,140.31,140.28,7.28179442]
[1763349305947,9.76784767,140.31,140.28,13.70199442]
[1763349306747,3.39,140.38,140.29,6.4198]
[1763349306943,3.39,140.38,140.32,0.04963547]
[1763349307349,3.39,140.41,140.32,0.04963547]
[1763349307549,3.39,140.41,140.35,0.04657442]
[1763349309054,3.39,140.41,140.36,8.03]
[1763349310367,5.42003734,140.45,140.36,8.03]
[1763349310657,5.42003734,140.45,140.39,0.05118289]
[1763349310864,3.39,140.44,140.39,0.05118289]
[1763349312460,3.39,140.44,140.36,8.03]
[1763349313457,3.39,140.4,140.39,0.05179089]
[1763349314164,0.04950247,140.41,140.39,0.05179089]
[1763349314467,3.43950247,140.41,140.39,0.05179089]
[1763349318765,3.43950247,140.41,140.36,8.03]
[1763349319964,3.43950247,140.41,140.37,0.04980729]
[1763349321165,0.04950247,140.41,140.37,0.04980729]
[1763349321565,3.15950247,140.41,140.37,0.04980729]
[1763349323371,0.04950247,140.41,140.37,0.04980729]
[1763349324078,0.04950247,140.41,140.38,2.73655302]
[1763349324775,0.04950247,140.41,140.39,62.0]
[1763349324968,3.15950247,140.41,140.38,2.73655302]
[1763349325670,0.04950247,140.41,140.38,2.73655302]
[1763349325872,3.15950247,140.41,140.38,2.73655302]
[1763349326069,0.04950247,140.41,140.38,2.73655302]
[1763349328181,0.04950247,140.41,140.38,9.15235302]
[1763349328476,0.04950247,140.41,140.4,2.73655302]
[1763349329075,0.04950247,140.41,140.4,6.4151]
[1763349329376,2.03003734,140.45,140.4,9.15165302]
[1763349330177,0.05402947,140.44,140.41,0.05197682]
[1763349330670,3.16402947,140.44,140.41,0.05197682]
[1763349331079,0.05402947,140.44,140.41,0.05197682]
[1763349331674,3.16402947,140.44,140.41,0.05197682]
[1763349332470,0.05402947,140.44,140.41,0.05197682]
[1763349332670,3.16402947,140.44,140.41,0.05197682]
[1763349333875,3.16402947,140.44,140.42,2.73655302]
[1763349333876,0.05402947,140.44,140.42,2.73655302]
[1763349334077,0.05402947,140.44,140.41,2.78852984]
[1763349334579,10.50985678,140.47,140.43,2.73655302]
[1763349334781,10.50985678,140.47,140.44,7.24964034]
[1763349334983,1.2388971,140.62,140.46,6.42946292]
[1763349335171,3.11,140.62,140.55,7.24964034]
[1763349335480,3.11,140.62,140.53,7.24964034]
[1763349335787,3.11,140.62,140.56,0.04591164]
[1763349336075,3.11,140.62,140.57,6.83055703]
[1763349336281,3.11,140.62,140.58,6.83055703]
[1763349336482,3.11,140.62,140.56,0.04591164]
[1763349336483,3.11,140.62,140.59,6.83055703]
[1763349336779,13.61985678,140.63,140.6,6.83055703]
[1763349337077,10.50985678,140.63,140.61,6.83055703]
[1763349337264,13.61985678,140.63,140.62,6.83055703]
[1763349338282,10.50985678,140.63,140.62,6.83055703]
[1763349338486,13.61985678,140.63,140.62,6.83055703]
[1763349339076,10.50985678,140.63,140.62,6.83055703]
[1763349339965,3.11,140.66,140.62,6.83055703]
[1763349340169,3.11,140.66,140.63,6.88069754]
[1763349340486,3.11,140.66,140.63,0.05014051]
[1763349340981,3.11,140.64,140.56,4.15724112]
[1763349341977,19.3,140.67,140.59,0.05403527]
[1763349341978,3.11,140.6,140.59,0.05403527]
[1763349342177,3.11,140.6,140.51,3.19]
[1763349342377,3.11,140.6,140.51,7.34724112]
[1763349342970,16.02,140.66,140.55,3.19]
[1763349343181,412.03003734,140.75,140.59,0.04647494]
[1763349343182,3.16245742,140.62,140.59,0.04647494]
[1763349343392,0.05460555,140.62,140.6,3.19]
[1763349343571,3.11,140.69,140.61,3.19]
[1763349344170,3.11,140.69,140.6,4.15724112]
[1763349344572,3.15613644,140.66,140.63,0.04497366]
[1763349344779,3.15613644,140.66,140.63,0.05480441]
[1763349345781,3.11,140.64,140.57,4.15724112]
[1763349346272,3.11,140.64,140.58,3.19]
[1763349346583,3.11,140.67,140.59,4.15724112]
[1763349346776,3.11,140.63,140.62,0.05068789]
[1763349349683,3.15672318,140.64,140.62,0.05068789]
[1763349352480,3.15672318,140.64,140.63,6.73385748]
[1763349354782,0.04672318,140.64,140.63,6.73385748]
[1763349355892,3.19672318,140.64,140.63,6.73385748]
[1763349357392,3.19672318,140.64,140.63,6.73139741]
[1763349358078,0.04672318,140.64,140.63,6.73139741]
[1763349358279,3.19672318,140.64,140.63,6.73139741]
[1763349358888,3.19672318,140.64,140.53,4.15724112]
[1763349359093,2.77,140.63,140.54,6.55840117]
[1763349359294,2.77,140.63,140.55,6.55840117]
[1763349359491,2.77,140.63,140.52,3.14]
[1763349359789,2.77,140.61,140.53,6.56343826]
[1763349359988,0.05135014,140.58,140.56,0.05160583]
[1763349360394,0.05135014,140.58,140.57,6.56298062]
[1763349361187,0.05135014,140.58,140.57,9.70298062]
[1763349361390,2.77,140.63,140.58,3.14]
[1763349361593,2.77,140.66,140.59,9.70298062]
[1763349361780,2.77,140.66,140.6,6.56298062]
[1763349362095,2.77,140.66,140.61,6.56298062]
[1763349362279,4.15724112,140.71,140.62,3.14]
[1763349362481,2.77,140.67,140.59,7.05]
[1763349362782,2.77,140.67,140.6,6.56516894]
[1763349362990,2.72,140.64,140.59,7.05]
[1763349363692,2.72,140.62,140.6,0.05001464]
[1763349363990,2.72,140.62,140.47,4.15724112]
[1763349363991,2.72,140.61,140.47,4.15724112]
[1763349364196,4.15724112,140.59,140.49,3.14]
[1763349364495,79.17724112,140.59,140.5,6.57660889]
[1763349364697,4.15724112,140.59,140.51,6.57660889]
[1763349364993,4.15724112,140.59,140.49,3.14]
[1763349364994,0.04609171,140.56,140.54,0.04808842]
[1763349365897,4.15724112,140.64,140.55,9.72642759]
[1763349366100,4.15724112,140.72,140.57,3.14]
[1763349366101,79.19724112,140.67,140.57,3.14]
[1763349366298,79.19724112,140.67,140.58,9.72642759]
[1763349366492,79.19724112,140.67,140.59,6.58642759]
[1763349366693,79.19724112,140.67,140.6,6.58642759]
[1763349366891,0.05100652,140.65,140.62,0.05228374]
[1763349367500,1.47100652,140.65,140.62,0.00228374]
[1763349368192,4.15724112,140.64,140.62,0.00228374]
[1763349368696,1.42,140.63,140.62,0.00228374]
[1763349369089,75.04,140.63,140.62,0.00228374]
[1763349370300,75.04,140.63,140.51,3.14]
[1763349370596,4.15724112,140.61,140.52,6.61043647]
[1763349370800,4.15724112,140.61,140.53,6.61043647]
[1763349371094,4.15724112,140.61,140.48,3.14]
[1763349371095,4.15724112,140.58,140.48,3.14]
[1763349371399,0.05284594,140.54,140.52,0.05326941]
[1763349371698,75.06,140.53,140.41,3.14]
[1763349371899,75.06,140.53,140.43,3.14]
[1763349372104,75.06,140.53,140.44,9.7627029]
[1763349372294,79.21724112,140.53,140.45,6.6227029]
[1763349372490,4.15724112,140.5,140.4,3.14]
[1763349372691,4.15724112,140.5,140.37,6.40363208]
[1763349372692,0.05235311,140.46,140.44,0.05450897]
[1763349373098,75.13235311,140.46,140.44,0.05450897]
[1763349373504,1.47235311,140.46,140.39,4.04]
[1763349373798,75.1,140.45,140.4,6.62911813]
[1763349374006,75.1,140.45,140.39,4.04]
[1763349374007,54.3,140.45,140.39,4.04]
[1763349374203,4.15724112,140.47,140.4,6.62956841]
[1763349374400,0.04704392,140.45,140.42,0.04666136]
[1763349375114,0.04704392,140.45,140.43,6.62333465]
[1763349375301,0.04704392,140.45,140.42,0.04666136]
[1763349375501,0.04704392,140.45,140.43,9.76139555]
[1763349375700,4.15724112,140.53,140.44,9.76139555]
[1763349375904,35.93724112,140.53,140.45,6.62139555]
[1763349376103,35.93724112,140.53,140.46,6.62139555]
[1763349376401,35.93724112,140.53,140.4,3.14]
[1763349376602,0.04843549,140.48,140.45,3.2716772]
[1763349376803,0.04843549,140.48,140.45,0.0516772]
[1763349377906,0.04843549,140.48,140.46,6.6196665]
[1763349378207,0.04843549,140.48,140.45,0.0516772]
[1763349378410,0.04843549,140.48,140.46,6.62071155]
[1763349378609,0.04843549,140.48,140.45,0.0516772]
[1763349378811,0.04843549,140.48,140.46,6.62063491]
[1763349379113,0.04843549,140.48,140.45,0.0516772]
[1763349379299,0.04843549,140.48,140.46,6.61978587]
[1763349379502,0.04843549,140.48,140.45,0.0516772]
[1763349379810,0.04843549,140.48,140.46,6.61977121]
[1763349380006,0.04843549,140.48,140.45,0.0516772]
[1763349380599,0.04843549,140.48,140.45,3.2716772]
[1763349381511,0.04843549,140.48,140.45,0.0516772]
[1763349383416,1.46843549,140.48,140.45,0.0516772]
[1763349383605,4.15724112,140.46,140.39,4.04]
[1763349384608,0.05377733,140.44,140.41,0.05457674]
[1763349384813,0.05377733,140.44,140.41,3.28457674]
[1763349386215,0.05377733,140.44,140.41,0.05457674]
[1763349386811,4.21101845,140.44,140.41,0.05457674]
[1763349387319,5.63101845,140.44,140.39,4.04]
[1763349387519,4.21101845,140.44,140.39,4.04]
[1763349388419,4.21101845,140.44,140.4,0.05262427]
[1763349388823,5.63101845,140.44,140.4,0.05262427]
[1763349389020,5.63101845,140.44,140.4,3.28262427]
[1763349389021,0.05377733,140.44,140.4,3.28262427]
[1763349389522,0.05377733,140.44,140.4,0.05262427]
[1763349389929,0.05377733,140.44,140.4,3.28262427]
[1763349390123,0.05377733,140.44,140.4,0.05262427]
[1763349394021,0.05377733,140.44,140.4,3.28262427]
[1763349395123,0.05377733,140.44,140.4,0.05262427]
[1763349397717,4.21101845,140.44,140.4,0.05262427]
[1763349398128,4.15724112,140.41,140.29,3.23]
[1763349398326,4.15724112,140.37,140.29,3.23]
[1763349398929,56.25305694,140.38,140.29,3.23]
[1763349399131,0.04586513,140.35,140.32,0.04526926]
[1763349399326,7.31892207,140.35,140.32,0.04526926]
[1763349400532,75.3,140.34,140.32,0.04526926]
[1763349400929,76.72,140.34,140.32,0.04526926]
[1763349401233,76.72,140.34,140.23,3.23]
[1763349401234,1.42,140.33,140.23,3.23]
[1763349401420,7.27305694,140.35,140.23,3.23]
[1763349401733,75.3,140.34,140.23,3.23]
[1763349402228,0.04541105,140.3,140.27,0.04617415]
[1763349402435,0.04541105,140.3,140.27,0.05333402]
[1763349402436,0.05442174,140.3,140.27,0.05333402]
[1763349402630,53.01305694,140.29,140.27,0.05333402]
[1763349402831,45.74,140.29,140.27,0.05333402]
[1763349403027,53.01305694,140.29,140.27,0.05333402]
[1763349403432,0.05442174,140.3,140.27,0.05333402]
[1763349403641,75.37442174,140.3,140.27,0.05333402]
[1763349404135,0.05442174,140.3,140.27,0.05333402]
[1763349404438,0.05442174,140.3,140.27,3.28333402]
[1763349406539,0.05442174,140.3,140.27,0.05333402]
[1763349406843,41.87442174,140.3,140.27,0.05333402]
[1763349407234,66.79442174,140.3,140.27,0.05333402]
[1763349407942,0.05442174,140.3,140.27,0.05333402]
[1763349408143,0.05442174,140.3,140.27,3.28333402]
[1763349409541,0.05442174,140.3,140.27,0.05333402]
[1763349411426,75.4,140.29,140.27,0.05333402]
[1763349411630,75.43442174,140.3,140.27,0.05333402]
[1763349412126,0.05442174,140.3,140.27,3.38333402]
[1763349412527,0.05442174,140.3,140.28,6.55684144]
[1763349412735,0.05442174,140.3,140.27,3.38333402]
[1763349412936,0.05442174,140.3,140.28,6.55682589]
[1763349413142,0.05442174,140.3,140.27,0.05333402]
[1763349414150,46.72,140.29,140.27,0.05333402]
[1763349414847,75.38,140.29,140.27,0.05333402]
[1763349416334,0.05442174,140.3,140.27,3.38333402]
[1763349417238,0.05442174,140.3,140.28,9.90669082]
[1763349417442,0.05442174,140.3,140.29,6.57669082]
[1763349418538,0.05442174,140.3,140.27,3.38333402]
[1763349418747,0.05442174,140.3,140.28,6.57517591]
[1763349418942,0.05442174,140.3,140.27,3.38333402]
[1763349419244,0.05442174,140.3,140.28,9.9056632]
[1763349419446,0.05442174,140.3,140.28,3.33]
[1763349420851,250.0,140.49,140.3,3.33]
[1763349421038,250.0,140.49,140.32,3.33]
[1763349421039,7.27305694,140.42,140.32,3.33]
[1763349421351,7.27305694,140.42,140.33,6.57347488]
[1763349421550,7.27305694,140.42,140.34,9.90179594]
[1763349421741,75.38,140.41,140.35,6.57078189]
[1763349421946,0.05291546,140.39,140.37,0.0536896]
[1763349423654,0.05291546,140.39,140.23,16.18530311]
[1763349423655,8.7459724,140.39,140.28,3.33]
[1763349423855,7.27305694,140.39,140.3,3.33]
[1763349424048,7.27305694,140.39,140.31,6.58049972]
[1763349424244,7.27305694,140.39,140.32,6.58049972]
[1763349424448,7.27305694,140.39,140.3,3.33]
[1763349424651,0.05217498,140.36,140.33,0.05134796]
[1763349425252,75.41217498,140.36,140.33,0.05134796]
[1763349427055,0.05217498,140.36,140.33,3.38134796]
[1763349427260,0.05217498,140.36,140.35,3.33]
[1763349427559,0.05217498,140.36,140.35,9.92473936]
[1763349427856,0.05217498,140.36,140.35,6.59473936]
[1763349428063,0.05217498,140.36,140.33,3.38134796]
[1763349428264,0.05217498,140.36,140.34,6.60272132]
[1763349428559,0.05217498,140.36,140.33,3.38134796]
[1763349428747,0.05217498,140.36,140.34,6.65156112]
[1763349428946,0.05217498,140.36,140.33,0.05134796]
[1763349429856,0.05217498,140.36,140.33,3.38134796]
[1763349430064,0.05217498,140.36,140.35,3.33]
[1763349430361,0.05217498,140.36,140.35,9.98435818]
[1763349431860,0.05217498,140.36,140.33,3.38134796]
[1763349432061,0.05217498,140.36,140.34,9.98916691]
[1763349432358,0.05217498,140.36,140.35,9.98916691]
[1763349432556,62.55305694,140.41,140.36,3.33]
[1763349432864,62.55305694,140.41,140.33,3.33]
[1763349433055,7.27305694,140.37,140.29,3.33]
[1763349433360,7.27305694,140.37,140.3,6.66493796]
[1763349433562,0.05124795,140.35,140.32,0.04597584]
[1763349433759,0.05124795,140.35,140.32,3.37597584]
[1763349433947,7.27305694,140.34,140.32,0.04597584]
[1763349434961,26.95124795,140.35,140.32,3.37597584]
[1763349434962,49.31124795,140.35,140.32,3.37597584]
[1763349435166,0.05124795,140.35,140.34,3.33]
[1763349435350,0.05124795,140.35,140.34,10.00157006]
[1763349437165,0.05124795,140.35,140.32,0.04597584]
[1763349439262,7.32430489,140.35,140.27,3.23]
[1763349439462,7.32430489,140.35,140.28,6.68679802]
[1763349439662,7.32430489,140.35,140.27,3.23]
[1763349439973,7.32430489,140.35,140.28,6.6879727]
[1763349440163,7.32430489,140.35,140.27,3.23]
[1763349440364,7.32430489,140.35,140.3,0.04954784]
[1763349441069,75.36,140.34,140.3,0.04954784]
[1763349442067,7.32430489,140.35,140.3,3.23954784]
[1763349442370,75.38,140.34,140.3,3.23954784]
[1763349443473,75.38,140.34,140.3,0.04954784]
[1763349443880,0.05124795,140.35,140.3,0.04954784]
[1763349443881,0.05124795,140.35,140.3,3.23954784]
[1763349444068,75.36,140.33,140.3,3.23954784]
[1763349444270,75.36,140.33,140.3,0.04954784]
[1763349445078,7.27305694,140.32,140.3,0.04954784]
[1763349446172,21.41,140.31,140.23,3.19]
[1763349447275,0.04956226,140.28,140.26,0.05295906]
[1763349447474,75.36,140.27,140.26,3.24295906]
[1763349449375,0.04956226,140.28,140.26,3.24295906]
[1763349449675,40.98,140.27,140.26,3.24295906]
[1763349450077,75.38,140.27,140.26,9.93360159]
[1763349450374,0.04956226,140.28,140.27,3.19]
[1763349450575,41.56956226,140.28,140.27,9.88064253]
[1763349451776,0.04956226,140.28,140.27,9.88064253]
[1763349451972,0.04956226,140.28,140.27,3.19]
[1763349452782,0.04956226,140.28,140.26,0.05295906]
[1763349453774,0.04956226,140.28,140.26,3.24295906]
[1763349454081,75.34,140.27,140.26,0.05295906]
[1763349456984,75.34,140.27,140.17,3.19]
[1763349456985,1.42,140.27,140.17,3.19]
[1763349457181,7.3226192,140.28,140.11,6.4282]
[1763349457182,75.34,140.26,140.18,9.88587605]
[1763349457381,75.34,140.26,140.18,3.19]
[1763349457568,82.61305694,140.26,140.19,6.6913623]
[1763349457770,82.61305694,140.26,140.18,3.19]
[1763349457980,0.0473683,140.23,140.21,0.05357411]
[1763349459480,75.38,140.22,140.21,0.05357411]
[1763349459876,0.0473683,140.23,140.21,3.24357411]
[1763349460080,7.27305694,140.31,140.21,3.24357411]
[1763349460277,34.54,140.3,140.22,3.19]
[1763349460784,4.18160705,140.29,140.22,3.19]
[1763349461183,0.05304831,140.27,140.24,3.23776037]
[1763349461375,0.04724967,140.27,140.24,3.23613038]
[1763349462676,75.38,140.26,140.24,3.23613038]
[1763349465983,75.38,140.26,140.24,0.04613038]
[1763349467187,79.56160705,140.26,140.24,0.04613038]
[1763349469087,79.56160705,140.26,140.17,3.19]
[1763349469282,4.18160705,140.19,140.13,3.19]
[1763349469493,75.32,140.18,140.14,9.88487663]
[1763349469693,75.32,140.18,140.14,3.19]
[1763349469989,0.0453634,140.17,140.15,0.04791579]
[1763349470285,0.0453634,140.17,140.15,3.23791579]
[1763349470481,75.38,140.16,140.15,3.23791579]
[1763349470785,75.38,140.16,140.15,9.92814171]
[1763349471988,0.0453634,140.17,140.15,9.92814171]
[1763349472189,75.38,140.16,140.15,3.23791579]
[1763349472389,75.38,140.16,140.15,9.92333342]
[1763349473080,75.4253634,140.17,140.15,9.92333342]
[1763349473281,75.4253634,140.17,140.15,3.23791579]
[1763349474689,75.4253634,140.17,140.15,0.04791579]
[1763349475193,4.18160705,140.16,140.15,0.04791579]
[1763349475688,4.18160705,140.16,140.09,3.31]
[1763349475884,4.18160705,140.16,140.1,9.99895666]
[1763349476089,58.5,140.15,140.11,3.31]
[1763349476483,0.05334058,140.14,140.12,0.04530037]
[1763349477590,0.05334058,140.14,140.12,3.35530037]
[1763349477897,75.41334058,140.14,140.13,9.99879669]
[1763349478189,0.05334058,140.14,140.13,9.99879669]
[1763349480796,4.18160705,140.2,140.14,3.31]
[1763349480985,4.18160705,140.2,140.09,6.4289]
[1763349480986,72.88,140.19,140.16,3.31]
[1763349481192,72.88,140.19,140.17,9.99869478]
[1763349481394,4.18160705,140.24,140.18,9.99901086]
[1763349481684,4.18160705,140.26,140.2,3.31]
[1763349481886,0.0452358,140.24,140.22,0.04691482]
[1763349482094,4.18160705,140.23,140.22,0.05004967]
[1763349482989,4.18160705,140.23,140.16,3.31]
[1763349483289,4.18160705,140.23,140.11,6.51354468]
[1763349483290,4.18160705,140.23,140.17,9.99831975]
[1763349483592,4.18160705,140.2,140.14,3.31]
[1763349483889,0.04740991,140.18,140.16,0.04784194]
[1763349484089,0.0450592,140.18,140.16,0.05209122]
[1763349484291,0.0450592,140.18,140.17,10.00746846]
[1763349486081,4.18160705,140.23,140.18,3.31]
[1763349486287,65.78,140.24,140.2,3.31]
[1763349486490,65.78,140.24,140.14,3.31]
[1763349486691,65.78,140.24,140.16,3.31]
[1763349486995,75.42,140.24,140.18,3.31]
[1763349487193,0.04565882,140.22,140.2,0.05441043]
[1763349487694,0.04565882,140.22,140.2,3.36441043]
[1763349487894,0.04565882,140.22,140.21,6.69632284]
[1763349488692,0.04565882,140.22,140.2,3.36441043]
[1763349488893,0.04565882,140.22,140.2,0.05441043]
[1763349489379,0.04565882,140.22,140.21,6.67098139]
[1763349489582,0.04565882,140.22,140.2,0.05441043]
[1763349489781,67.64565882,140.22,140.2,0.05441043]
[1763349490589,75.46565882,140.22,140.2,3.36441043]
[1763349490798,75.46565882,140.22,140.21,6.67304679]
[1763349491196,75.46565882,140.22,140.2,0.05441043]
[1763349492497,75.46565882,140.22,140.14,3.31]
[1763349492798,75.46565882,140.22,140.15,6.67877088]
[1763349492999,0.04565882,140.22,140.17,3.31]
[1763349493201,75.4,140.21,140.18,6.67877088]
[1763349493502,75.44765507,140.21,140.18,0.04931286]
[1763349494105,75.42,140.2,140.18,3.35931286]
[1763349494294,0.04765507,140.21,140.18,3.35931286]
[1763349494494,75.44765507,140.21,140.18,3.35931286]
[1763349494695,0.04765507,140.21,140.18,3.35931286]
[1763349494896,75.44765507,140.21,140.18,3.35931286]
[1763349495601,75.44765507,140.21,140.19,6.68125513]
[1763349495909,75.44765507,140.21,140.18,3.35931286]
[1763349496105,75.44765507,140.21,140.19,6.68017335]
[1763349496301,75.44765507,140.21,140.18,3.35931286]
[1763349496504,75.44765507,140.21,140.19,6.6835552]
[1763349496703,75.42765507,140.21,140.18,3.35931286]
[1763349497004,75.42765507,140.21,140.19,6.68334686]
[1763349497207,75.42765507,140.21,140.18,3.35931286]
[1763349497406,0.04765507,140.21,140.2,3.18]
[1763349497708,0.04765507,140.21,140.2,6.68608395]
[1763349499002,0.04765507,140.21,140.2,9.86608395]
[1763349507415,0.04765507,140.21,140.2,6.68608395]
[1763349507715,1.46765507,140.21,140.18,0.04931286]
[1763349507925,4.18160705,140.19,140.14,3.31]
[1763349508113,75.3,140.18,140.14,3.31]
[1763349508313,25.59160705,140.24,140.14,3.31]
[1763349508314,75.3,140.19,140.14,3.31]
[1763349509022,0.04657147,140.18,140.16,3.31]
[1763349510609,0.04657147,140.18,140.15,3.35550856]
[1763349511417,0.04657147,140.18,140.15,0.04550856]
[1763349512017,0.04657147,140.18,140.15,3.35550856]
[1763349512217,75.34657147,140.18,140.15,3.35550856]
[1763349513719,0.04657147,140.18,140.15,3.35550856]
[1763349523040,2.7940651,140.18,140.15,0.04550856]
[1763349523422,2.7940651,140.18,140.15,3.35550856]
[1763349527035,77.9940651,140.18,140.15,3.35550856]
[1763349527937,75.24657147,140.18,140.15,3.35550856]
[1763349528238,2.74749363,140.17,140.15,3.35550856]
[1763349529439,75.22657147,140.18,140.15,3.35550856]
[1763349529931,77.9740651,140.18,140.15,3.35550856]
[1763349531341,77.9740651,140.18,140.15,0.04550856]
[1763349531837,77.9740651,140.18,140.15,3.35550856]
[1763349533030,77.9740651,140.18,140.15,0.04550856]
[1763349535535,77.90749363,140.17,140.15,0.04550856]
[1763349536135,2.74749363,140.17,140.15,0.04550856]
[1763349536733,60.54,140.16,140.15,3.35550856]
[1763349537340,60.54,140.16,140.15,0.04550856]
[1763349537541,60.54,140.16,140.15,3.35550856]
[1763349537944,75.14,140.17,140.15,3.35550856]
[1763349539039,0.04657147,140.18,140.15,3.35550856]
[1763349542242,2.74749363,140.16,140.1,3.31]
[1763349542445,75.14,140.19,140.05,9.8661399]
[1763349542446,2.74749363,140.13,140.05,9.8661399]
[1763349542648,2.74749363,140.13,140.03,8.91224617]
[1763349542649,77.90749363,140.13,140.06,3.31]
[1763349543447,0.05317016,140.11,140.06,3.31]
[1763349543744,0.05317016,140.11,140.07,3.31]
[1763349545543,2.80066379,140.11,140.07,3.31]
[1763349547146,0.05317016,140.11,140.07,3.31]
[1763349550349,2.74749363,140.17,140.07,3.31]
[1763349550650,2.74749363,140.17,140.08,3.31]
[1763349551248,2.74749363,140.17,140.09,3.31]
[1763349551452,0.04984754,140.14,140.12,0.05292048]
[1763349551750,0.04984754,140.14,140.12,3.36292048]
[1763349552137,0.04984754,140.14,140.12,0.05292048]
[1763349552545,0.04984754,140.14,140.12,3.36292048]
[1763349555355,0.04984754,140.14,140.12,0.05292048]
[1763349555942,2.79734117,140.14,140.12,0.05292048]
[1763349557446,2.79734117,140.14,140.06,3.31]
[1763349557651,2.74749363,140.14,140.06,3.31]
[1763349557849,2.74749363,140.11,140.06,3.31]
[1763349558446,0.04687956,140.1,140.06,3.31]
[1763349562254,0.04687956,140.1,140.01,6.5561399]
[1763349562255,2.79437319,140.1,140.03,3.36]
[1763349562562,0.04903379,140.08,140.03,3.36]
[1763349566964,0.04903379,140.08,140.0,3.36]
[1763349567263,2.74749363,140.11,140.04,3.36]
[1763349567464,2.74749363,140.14,140.04,3.36]
[1763349568166,0.04569072,140.1,140.08,0.05181279]
[1763349568468,0.04569072,140.1,140.09,3.36]
[1763349568858,0.04569072,140.1,140.09,6.10749363]
[1763349569260,0.04569072,140.1,140.09,3.36]
[1763349571166,0.04569072,140.1,140.08,0.05181279]
[1763349571374,0.04569072,140.1,140.08,3.41181279]
[1763349571769,0.04569072,140.1,140.08,0.05181279]
[1763349573468,0.04569072,140.1,140.08,3.41181279]
[1763349575165,0.04569072,140.1,140.08,6.15930642]
[1763349575370,0.04569072,140.1,140.09,3.36]
[1763349582775,0.04569072,140.1,140.09,5.11867181]
[1763349583970,6.6534506,140.17,140.1,3.36]
[1763349584178,6.6534506,140.17,140.11,5.11867181]
[1763349584375,6.6534506,140.18,140.12,3.36]
[1763349584578,6.6534506,140.18,140.13,1.75867181]
[1763349584872,6.6534506,140.18,140.13,3.36]
[1763349585076,0.05401574,140.17,140.14,0.05225845]
[1763349588381,0.05401574,140.17,140.14,3.41225845]
[1763349588581,0.05401574,140.17,140.14,0.05225845]
[1763349589080,6.70746634,140.17,140.14,0.05225845]
[1763349590883,0.05401574,140.17,140.14,0.05225845]
[1763349591086,0.05401574,140.17,140.14,3.41225845]
[1763349591483,0.05401574,140.17,140.14,0.05225845]
[1763349596194,1.75867181,140.16,140.14,0.05225845]
[1763349599091,0.05401574,140.17,140.14,0.05225845]
[1763349599092,75.14,140.15,140.14,3.25225845]
[1763349599984,75.14,140.15,140.14,0.05225845]
[1763349600184,0.05401574,140.17,140.14,3.25225845]
[1763349600379,42.22,140.16,140.14,3.25225845]
[1763349600694,42.22,140.16,140.14,0.05225845]
[1763349605882,75.12,140.16,140.14,3.25225845]
[1763349606087,1.75867181,140.23,140.16,3.2]
[1763349606285,76.87867181,140.23,140.18,3.2]
[1763349606697,1.75867181,140.21,140.15,3.2]
[1763349606899,8.79863348,140.25,140.16,3.2]
[1763349607091,0.05176721,140.22,140.19,3.24500088]
[1763349607392,0.04518011,140.22,140.19,0.04941428]
[1763349607790,0.04518011,140.22,140.19,3.24941428]